fUSD/lending_fUSD_20250530
["ID","MTS","AMOUNT","RATE_DAILY","PERIOD"]
[363161399,1748604671316,-420.0,0.00023287,2]
[363161400,1748604671325,-420.0,0.00023287,2]
[363161401,1748604671333,-420.0,0.00023287,2]
[363161402,1748604671343,-420.0,0.00023287,2]
[363161403,1748604671352,-420.0,0.00023287,2]
[363161404,1748604671361,-420.0,0.00023287,2]
[363161405,1748604671370,-420.0,0.00023287,2]
[363161406,1748604671379,-420.0,0.00023287,2]
[363161407,1748604671388,-420.0,0.00023287,2]
[363161408,1748604671397,-420.0,0.00023287,2]
[363161409,1748604671406,-420.0,0.00023287,2]
[363161410,1748604671414,-702.31,0.00023287,2]
[363161411,1748604671424,-446.43,0.00023287,2]
[363161412,1748604671432,-420.0,0.00023287,2]
[363161413,1748604671441,-438.29,0.00023287,2]
[363161414,1748604671449,-426.9,0.00023287,2]
[363161415,1748604671458,-420.0,0.00023287,2]
[363161416,1748604671466,-420.0,0.00023287,2]
[363161417,1748604671475,-930.8,0.00023287,2]
[363161418,1748604671484,-420.0,0.00023287,2]
[363161419,1748604671490,-420.0,0.00023287,2]
[363161420,1748604671497,-420.0,0.00023287,2]
[363161421,1748604671506,-1732.59,0.00023287,2]
[363161422,1748604671514,-555.05,0.00023287,2]
[363161423,1748604671524,-420.0,0.00023287,2]
[363161424,1748604671532,-420.0,0.00023287,2]
[363161425,1748604671541,-1062.63,0.00023287,2]
[363161426,1748604671550,-580.84,0.00023287,2]
[363161427,1748604671558,-420.0,0.00023287,2]
[363161428,1748604671567,-642.32,0.00023287,2]
[363161429,1748604671576,-300.0,0.00023287,2]
[363161430,1748604671585,-718.47,0.00023287,2]
[363161431,1748604671594,-497.4,0.00023287,2]
[363161432,1748604671603,-984.73,0.00023287,2]
[363161433,1748604671612,-576.3,0.00023287,2]
[363161434,1748604671621,-420.0,0.00023287,2]
[363161435,1748604671632,-800.26,0.00023287,2]
[363161436,1748604671641,-718.15,0.00023287,2]
[363161437,1748604671649,-612.87,0.00023287,2]
[363161438,1748604671658,-770.54,0.00023287,2]
[363161439,1748604671667,-568.6,0.00023287,2]
[363161440,1748604671883,-728.67,0.00023287,2]
[363161441,1748604671893,-595.4,0.00023287,2]
[363161442,1748604671903,-420.0,0.00023287,2]
[363161443,1748604671914,-1523.16,0.00023287,2]
[363161444,1748604671923,-439.89,0.00023287,2]
[363161445,1748604671932,-1185.02,0.00023287,2]
[363161446,1748604671941,-473.85,0.00023287,2]
[363161447,1748604671950,-1155.34,0.00023287,2]
[363161448,1748604671959,-852.11,0.00023287,2]
[363161449,1748604671969,-536.09,0.00023287,2]
[363161450,1748604671979,-499.47,0.00023287,2]
[363161451,1748604671988,-1064.97,0.00023287,2]
[363161452,1748604671997,-553.07,0.00023287,2]
[363161453,1748604672006,-550.09,0.00023287,2]
[363161454,1748604672015,-160.20587512,0.00023287,2]
[363161455,1748604672025,-1249.34,0.00023287,2]
[363161456,1748604672034,-1087.42,0.00023287,2]
[363161457,1748604672043,-748.6,0.00023287,2]
[363161458,1748604672052,-420.0,0.00023287,2]
[363161459,1748604672062,-420.0,0.00023287,2]
[363161460,1748604672070,-420.0,0.00023287,2]
[363161461,1748604672079,-633.8,0.00023287,2]
[363161462,1748604672088,-569.25,0.00023287,2]
[363161463,1748604672097,-528.37,0.00023287,2]
[363161464,1748604672106,-420.0,0.00023287,2]
[363161465,1748604672115,-1602.73,0.00023287,2]
[363161466,1748604672124,-569.24,0.00023287,2]
[363161467,1748604672135,-457.6,0.00023287,2]
[363161468,1748604672144,-1032.32,0.00023287,2]
[363161469,1748604672153,-707.39,0.00023287,2]
[363161470,1748604672162,-910.96,0.00023287,2]
[363161471,1748604672171,-476.94,0.00023287,2]
[363161472,1748604672180,-1017.67,0.00023287,2]
[363161473,1748604672189,-709.34,0.00023287,2]
[363161474,1748604672198,-501.18,0.00023287,2]
[363161475,1748604672207,-677.94,0.00023287,2]
[363161476,1748604672216,-1214.26,0.00023287,2]
[363161477,1748604672226,-729.59,0.00023287,2]
[363161478,1748604672235,-646.84,0.00023287,2]
[363161479,1748604672244,-473.0,0.00023287,2]
[363161480,1748604672254,-633.82,0.00023287,2]
[363161481,1748604672263,-1308.02,0.00023287,2]
[363161482,1748604672274,-454.15,0.00023287,2]
[363161483,1748604672284,-420.0,0.00023287,2]
[363161484,1748604672294,-530.64,0.00023287,2]
[363161485,1748604672304,-520.26,0.00023287,2]
[363161486,1748604672314,-460.64,0.00023287,2]
[363161487,1748604672324,-609.32,0.00023287,2]
[363161488,1748604672333,-420.0,0.00023287,2]
[363161489,1748604672343,-420.0,0.00023287,2]
[363161490,1748604672352,-1385.17,0.00023287,2]
[363161491,1748604672363,-611.87,0.00023287,2]
[363161492,1748604672373,-457.58,0.00023287,2]
[363161493,1748604672385,-498.5,0.00023287,2]
[363161494,1748604672394,-1068.05,0.00023287,2]
[363161495,1748604672403,-534.02,0.00023287,2]
[363161496,1748604672412,-420.0,0.00023287,2]
[363161497,1748604672421,-423.02,0.00023287,2]
[363161498,1748604672431,-1806.1,0.00023287,2]
[363161499,1748604672440,-955.38,0.00023287,2]
[363161500,1748604672449,-437.24,0.00023287,2]
[363161501,1748604672458,-420.0,0.00023287,2]
[363161502,1748604672468,-998.33,0.00023287,2]
[363161503,1748604672477,-1133.83,0.00023287,2]
[363161504,1748604672486,-768.21,0.00023287,2]
[363161505,1748604672496,-774.62,0.00023287,2]
[363161506,1748604672506,-420.0,0.00023287,2]
[363161507,1748604672516,-735.92,0.00023287,2]
[363161508,1748604672526,-1319.04,0.00023287,2]
[363161509,1748604672536,-448.54,0.00023287,2]
[363161510,1748604672546,-420.0,0.00023287,2]
[363161511,1748604672563,-622.98,0.00023287,2]
[363161512,1748604672572,-420.0,0.00023287,2]
[363161513,1748604672582,-1350.91,0.00023287,2]
[363161514,1748604672592,-420.0,0.00023287,2]
[363161515,1748604672601,-420.0,0.00023287,2]
[363161516,1748604672611,-519.24,0.00023287,2]
[363161517,1748604672621,-489.38,0.00023287,2]
[363161518,1748604672631,-420.0,0.00023287,2]
[363161519,1748604672640,-420.0,0.00023287,2]
[363161520,1748604672649,-613.75,0.00023287,2]
[363161521,1748604672659,-606.72,0.00023287,2]
[363161522,1748604672671,-420.0,0.00023287,2]
[363161523,1748604672680,-420.0,0.00023287,2]
[363161524,1748604672698,-476.62,0.00023287,2]
[363161525,1748604672707,-611.09,0.00023287,2]
[363161526,1748604672716,-466.39,0.00023287,2]
[363161527,1748604672725,-420.0,0.00023287,2]
[363161528,1748604672735,-420.0,0.00023287,2]
[363161529,1748604672746,-479.89,0.00023287,2]
[363161530,1748604672755,-777.7,0.00023287,2]
[363161531,1748604672764,-544.4,0.00023287,2]
[363161532,1748604672774,-420.0,0.00023287,2]
[363161533,1748604672783,-420.0,0.00023287,2]
[363161534,1748604672792,-1992.36,0.00023287,2]
[363161535,1748604672802,-449.12,0.00023287,2]
[363161536,1748604672810,-1690.08,0.00023287,2]
[363161537,1748604672819,-935.34,0.00023287,2]
[363161538,1748604672828,-474.41,0.00023287,2]
[363161539,1748604672837,-420.0,0.00023287,2]
[363161540,1748604672845,-420.0,0.00023287,2]
[363161541,1748604672855,-973.78,0.00023287,2]
[363161542,1748604672864,-568.56298056,0.00023287,2]
[363161543,1748604672877,-574.23,0.00023287,2]
[363161544,1748604672886,-1023.52,0.00023287,2]
[363161545,1748604672896,-577.88,0.00023287,2]
[363161546,1748604672904,-531.71,0.00023287,2]
[363161547,1748604672912,-1661.66,0.00023287,2]
[363161548,1748604672922,-420.0,0.00023287,2]
[363161549,1748604672931,-389.97389382,0.00023287,2]
[363161550,1748604672940,-420.0,0.00023287,2]
[363161551,1748604672949,-772.75,0.00023287,2]
[363161552,1748604672959,-420.0,0.00023287,2]
[363161553,1748604672967,-605.59,0.00023287,2]
[363161554,1748604672976,-420.0,0.00023287,2]
[363161555,1748604672984,-420.0,0.00023287,2]
[363161556,1748604672993,-588.38,0.00023287,2]
[363161557,1748604673002,-578.91,0.00023287,2]
[363161558,1748604673012,-420.0,0.00023287,2]
[363161559,1748604673021,-606.64,0.00023287,2]
[363161560,1748604673031,-443.15,0.00023287,2]
[363161561,1748604673040,-420.0,0.00023287,2]
[363161562,1748604673049,-1125.77,0.00023287,2]
[363161563,1748604673058,-420.0,0.00023287,2]
[363161564,1748604673068,-420.0,0.00023287,2]
[363161565,1748604673078,-938.03,0.00023287,2]
[363161566,1748604673088,-931.36,0.00023287,2]
[363161567,1748604673097,-420.0,0.00023287,2]
[363161568,1748604673106,-1301.2,0.00023287,2]
[363161569,1748604673116,-486.44990018,0.00023287,2]
[363161570,1748604673125,-420.0,0.00023287,2]
[363161571,1748604673137,-775.29,0.00023287,2]
[363161572,1748604673146,-420.0,0.00023287,2]
[363161573,1748604673155,-420.0,0.00023287,2]
[363161574,1748604673165,-420.0,0.00023287,2]
[363161575,1748604673174,-575.37,0.00023287,2]
[363161576,1748604673183,-420.0,0.00023287,2]
[363161577,1748604673193,-483.2,0.00023287,2]
[363161578,1748604673202,-534.46,0.00023287,2]
[363161579,1748604673212,-420.0,0.00023287,2]
[363161580,1748604673221,-795.5,0.00023287,2]
[363161581,1748604673230,-487.54,0.00023287,2]
[363161582,1748604673239,-722.47,0.00023287,2]
[363161583,1748604673248,-420.0,0.00023287,2]
[363161584,1748604673257,-423.44,0.00023287,2]
[363161585,1748604673266,-420.0,0.00023287,2]
[363161586,1748604673275,-674.84,0.00023287,2]
[363161587,1748604673285,-1084.93,0.00023287,2]
[363161588,1748604673295,-956.78,0.00023287,2]
[363161589,1748604673304,-1747.0,0.00023287,2]
[363161590,1748604673314,-523.54,0.00023287,2]
[363161591,1748604673323,-499.91,0.00023287,2]
[363161592,1748604673332,-903.59,0.00023287,2]
[363161593,1748604673341,-865.58,0.00023287,2]
[363161594,1748604673350,-900.74,0.00023287,2]
[363161595,1748604673360,-420.0,0.00023287,2]
[363161596,1748604673369,-1372.63,0.00023287,2]
[363161597,1748604673378,-588.22,0.00023287,2]
[363161598,1748604673388,-429.11,0.00023287,2]
[363161599,1748604673397,-770.98,0.00023287,2]
[363161600,1748604673406,-420.0,0.00023287,2]
[363161601,1748604673416,-1375.2,0.00023287,2]
[363161602,1748604673425,-768.17,0.00023287,2]
[363161603,1748604673434,-517.47,0.00023287,2]
[363161604,1748604673443,-420.0,0.00023287,2]
[363161605,1748604673452,-623.0,0.00023287,2]
[363161606,1748604673461,-793.05,0.00023287,2]
[363161607,1748604673470,-1241.06,0.00023287,2]
[363161608,1748604673479,-765.2,0.00023287,2]
[363161609,1748604673487,-420.0,0.00023287,2]
[363161610,1748604673496,-421.91,0.00023287,2]
[363161611,1748604673505,-421.93,0.00023287,2]
[363161612,1748604673514,-485.75,0.00023287,2]
[363161613,1748604673523,-420.0,0.00023287,2]
[363161614,1748604673531,-420.0,0.00023287,2]
[363161615,1748604673539,-283.56205,0.00023287,7]
[363161616,1748604673549,-491.63,0.00023287,2]
[363161617,1748604673557,-502.61,0.00023287,2]
[363161618,1748604673566,-283.56205,0.00023287,7]
[363161619,1748604673575,-430.15,0.00023287,2]
[363161620,1748604673585,-9469.1,0.00023287,2]
[363161621,1748604673594,-10073.27,0.00023287,2]
[363161622,1748604673604,-742.8,0.00023287,2]
[363161623,1748604673614,-420.0,0.00023287,2]
[363161624,1748604673623,-2689.83,0.00023287,2]
[363161625,1748604673632,-1981.59,0.00023287,2]
[363161626,1748604673642,-607.85,0.00023287,2]
[363161627,1748604673652,-564.47,0.00023287,2]
[363161628,1748604673660,-1369.33,0.00023287,2]
[363161629,1748604673670,-576.41,0.00023287,2]
[363161630,1748604673679,-12307.47,0.00023287,2]
[363161631,1748604673689,-1369.38,0.00023287,2]
[363161632,1748604673699,-863.99,0.00023287,2]
[363161633,1748604673709,-1245.87,0.00023287,2]
[363161634,1748604673718,-5194.13,0.00023287,2]
[363161635,1748604673728,-420.0,0.00023287,2]
[363161636,1748604673738,-880.77,0.00023287,2]
[363161637,1748604673747,-563.44,0.00023287,2]
[363161638,1748604673757,-2466.96,0.00023287,2]
[363161639,1748604673767,-631.65,0.00023287,2]
[363161640,1748604673777,-420.0,0.00023287,2]
[363161641,1748604673786,-531.93927472,0.00023287,2]
[363161642,1748604673796,-659.94,0.00023287,2]
[363161643,1748604673804,-816.72,0.00023287,2]
[363161644,1748604673814,-420.0,0.00023287,2]
[363161645,1748604673822,-2995.72,0.00023287,2]
[363161646,1748604673831,-598.75,0.00023287,2]
[363161647,1748604673841,-2447.94,0.00023287,2]
[363161648,1748604673852,-2947.99,0.00023287,2]
[363161649,1748604673861,-420.0,0.00023287,2]
[363161650,1748604673872,-151.0,0.00023287,7]
[363161651,1748604673883,-1153.83,0.00023287,2]
[363161652,1748604673893,-3076.84,0.00023287,2]
[363161653,1748604673903,-769.26,0.00023287,2]
[363161654,1748604673912,-924.16,0.00023287,2]
[363161655,1748604673923,-644.07,0.00023287,2]
[363161656,1748604673933,-420.0,0.00023287,2]
[363161657,1748604673942,-1310.77,0.00023287,2]
[363161658,1748604673954,-1040.66,0.00023287,2]
[363161659,1748604673964,-520.85,0.00023287,2]
[363161660,1748604673974,-1315.08,0.00023287,2]
[363161661,1748604673984,-420.0,0.00023287,2]
[363161662,1748604673994,-420.0,0.00023287,2]
[363161663,1748604674003,-1506.01,0.00023287,2]
[363161664,1748604674013,-420.0,0.00023287,2]
[363161665,1748604674023,-1515.01,0.00023287,2]
[363161666,1748604674033,-420.0,0.00023287,2]
[363161667,1748604674043,-1337.36,0.00023287,2]
[363161668,1748604674053,-3730.71,0.00023287,2]
[363161669,1748604674063,-425.25,0.00023287,2]
[363161670,1748604674073,-1314.08,0.00023287,2]
[363161671,1748604674083,-759.43,0.00023287,2]
[363161672,1748604674092,-909.46,0.00023287,2]
[363161673,1748604674103,-420.0,0.00023287,2]
[363161674,1748604674112,-673.25,0.00023287,2]
[363161675,1748604674122,-612.32,0.00023287,2]
[363161676,1748604674131,-1256.48,0.00023287,2]
[363161677,1748604674141,-2157.82,0.00023287,2]
[363161678,1748604674150,-1309.63,0.00023287,2]
[363161679,1748604674159,-1075.01,0.00023287,2]
[363161680,1748604674171,-1218.05,0.00023287,2]
[363161681,1748604674180,-915.55,0.00023287,2]
[363161682,1748604674190,-2231.36,0.00023287,2]
[363161683,1748604674200,-420.0,0.00023287,2]
[363161684,1748604674210,-420.0,0.00023287,2]
[363161685,1748604674219,-2569.35,0.00023287,2]
[363161686,1748604674230,-6828.35,0.00023287,2]
[363161687,1748604674239,-1631.2,0.00023287,2]
[363161688,1748604674249,-611.68,0.00023287,2]
[363161689,1748604674258,-3976.57,0.00023287,2]
[363161690,1748604674268,-555.53,0.00023287,2]
[363161691,1748604674277,-3327.44,0.00023287,2]
[363161692,1748604674287,-1192.67,0.00023287,2]
[363161693,1748604674296,-420.0,0.00023287,2]
[363161694,1748604674305,-828.67,0.00023287,2]
[363161695,1748604674315,-3739.43,0.00023287,2]
[363161696,1748604674335,-420.0,0.00023287,2]
[363161697,1748604674345,-772.93,0.00023287,2]
[363161698,1748604674354,-2900.14,0.00023287,2]
[363161699,1748604674364,-3733.9,0.00023287,2]
[363161700,1748604674374,-1294.2,0.00023287,2]
[363161701,1748604674384,-1235.41,0.00023287,2]
[363161702,1748604674393,-5087.08,0.00023287,2]
[363161703,1748604674403,-1678.74,0.00023287,2]
[363161704,1748604674413,-582.4,0.00023287,2]
[363161705,1748604674422,-1439.67,0.00023287,2]
[363161706,1748604674432,-580.13,0.00023287,2]
[363161707,1748604674441,-6434.09,0.00023287,2]
[363161708,1748604674451,-759.66,0.00023287,2]
[363161709,1748604674460,-3623.76,0.00023287,2]
[363161710,1748604674469,-655.72,0.00023287,2]
[363161711,1748604674479,-642.76,0.00023287,2]
[363161712,1748604674488,-481.9,0.00023287,2]
[363161713,1748604674498,-447.8,0.00023287,2]
[363161714,1748604674507,-549.6,0.00023287,2]
[363161715,1748604674517,-3772.06,0.00023287,2]
[363161716,1748604674526,-2238.52,0.00023287,2]
[363161717,1748604674537,-656.16,0.00023287,2]
[363161718,1748604674552,-2601.73,0.00023287,2]
[363161719,1748604674563,-1054.88,0.00023287,2]
[363161720,1748604674573,-568.59,0.00023287,2]
[363161721,1748604674582,-1168.1,0.00023287,2]
[363161722,1748604674591,-1669.51,0.00023287,2]
[363161723,1748604674600,-581.44,0.00023287,2]
[363161724,1748604674609,-999.1,0.00023287,2]
[363161725,1748604674619,-420.0,0.00023287,2]
[363161726,1748604674628,-3565.93,0.00023287,2]
[363161727,1748604674639,-420.0,0.00023287,2]
[363161728,1748604674648,-644.61,0.00023287,2]
[363161729,1748604674657,-1021.83,0.00023287,2]
[363161730,1748604674666,-1573.75,0.00023287,2]
[363161731,1748604674675,-420.0,0.00023287,2]
[363161732,1748604674684,-1017.27,0.00023287,2]
[363161733,1748604674693,-700.99,0.00023287,2]
[363161734,1748604674703,-2494.53,0.00023287,2]
[363161735,1748604674712,-680.88,0.00023287,2]
[363161736,1748604674721,-2312.08,0.00023287,2]
[363161737,1748604674730,-1182.54,0.00023287,2]
[363161738,1748604674739,-906.67,0.00023287,2]
[363161739,1748604674748,-2382.61,0.00023287,2]
[363161740,1748604674756,-8094.13,0.00023287,2]
[363161741,1748604674765,-516.49,0.00023287,2]
[363161742,1748604674774,-3383.87,0.00023287,2]
[363161743,1748604674783,-927.42,0.00023287,2]
[363161744,1748604674793,-4483.36,0.00023287,2]
[363161745,1748604674802,-515.51,0.00023287,2]
[363161746,1748604674812,-639.62,0.00023287,2]
[363161747,1748604674822,-2136.49,0.00023287,2]
[363161748,1748604674831,-420.0,0.00023287,2]
[363161749,1748604674840,-839.58,0.00023287,2]
[363161750,1748604674849,-979.47,0.00023287,2]
[363161751,1748604674859,-1149.03,0.00023287,2]
[363161752,1748604674869,-608.6,0.00023287,2]
[363161753,1748604674883,-939.09,0.00023287,2]
[363161754,1748604674894,-420.0,0.00023287,2]
[363161755,1748604674904,-1482.61,0.00023287,2]
[363161756,1748604674914,-1889.77,0.00023287,2]
[363161757,1748604674924,-1000.0,0.00023287,2]
[363161758,1748604674934,-750.99,0.00023287,2]
[363161759,1748604674943,-960.87,0.00023287,2]
[363161760,1748604674954,-514.33,0.00023287,2]
[363161761,1748604674964,-431.76,0.00023287,2]
[363161762,1748604675235,-866.43,0.00023287,2]
[363161763,1748604675246,-1436.8,0.00023287,2]
[363161764,1748604675255,-493.51,0.00023287,2]
[363161765,1748604675265,-10057.47,0.00023287,2]
[363161766,1748604675275,-754.64,0.00023287,2]
[363161767,1748604675285,-420.0,0.00023287,2]
[363161768,1748604675294,-574.11,0.00023287,2]
[363161769,1748604675304,-420.0,0.00023287,2]
[363161770,1748604675314,-2523.48,0.00023287,2]
[363161771,1748604675324,-864.09,0.00023287,2]
[363161772,1748604675333,-420.0,0.00023287,2]
[363161773,1748604675343,-595.39,0.00023287,2]
[363161774,1748604675352,-2343.17,0.00023287,2]
[363161775,1748604675361,-1350.61,0.00023287,2]
[363161776,1748604675370,-1275.82,0.00023287,2]
[363161777,1748604675379,-10528.63,0.00023287,2]
[363161778,1748604675389,-785.99,0.00023287,2]
[363161779,1748604675398,-420.0,0.00023287,2]
[363161780,1748604675407,-746.67,0.00023287,2]
[363161781,1748604675416,-1173.07,0.00023287,2]
[363161782,1748604675425,-1197.98,0.00023287,2]
[363161783,1748604675434,-2200.67,0.00023287,2]
[363161784,1748604675445,-845.16,0.00023287,2]
[363161785,1748604675456,-795.97,0.00023287,2]
[363161786,1748604675466,-1300.55,0.00023287,2]
[363161787,1748604675475,-785.56,0.00023287,2]
[363161788,1748604675484,-6935.34,0.00023287,2]
[363161789,1748604675493,-420.0,0.00023287,2]
[363161790,1748604675502,-420.0,0.00023287,2]
[363161791,1748604675511,-420.0,0.00023287,2]
[363161792,1748604675519,-5936.94,0.00023287,2]
[363161793,1748604675529,-1476.35,0.00023287,2]
[363161794,1748604675539,-420.0,0.00023287,2]
[363161795,1748604675548,-123071.45,0.00023287,2]
[363161796,1748604675557,-4600.82,0.00023287,2]
[363161797,1748604675567,-574.07,0.00023287,2]
[363161798,1748604675576,-420.0,0.00023287,2]
[363161799,1748604675585,-1760.95,0.00023287,2]
[363161800,1748604675594,-632.71,0.00023287,2]
[363161801,1748604675603,-420.0,0.00023287,2]
[363161802,1748604675613,-792.56,0.00023287,2]
[363161803,1748604675622,-876.4,0.00023287,2]
[363161804,1748604675632,-891.11,0.00023287,2]
[363161805,1748604675641,-1035.56,0.00023287,2]
[363161806,1748604675650,-3046.1,0.00023287,2]
[363161807,1748604675659,-868.44,0.00023287,2]
[363161808,1748604675669,-781.24,0.00023287,2]
[363161809,1748604675678,-1178.18,0.00023287,2]
[363161810,1748604675687,-31646.38,0.00023287,2]
[363161811,1748604675695,-420.0,0.00023287,2]
[363161812,1748604675704,-420.0,0.00023287,2]
[363161813,1748604675713,-996.67,0.00023287,2]
[363161814,1748604675722,-1089.79,0.00023287,2]
[363161815,1748604675731,-420.0,0.00023287,2]
[363161816,1748604675739,-420.0,0.00023287,2]
[363161817,1748604675748,-875.57,0.00023287,2]
[363161818,1748604675757,-2264.05,0.00023287,2]
[363161819,1748604675766,-420.0,0.00023287,2]
[363161820,1748604675775,-1584.69,0.00023287,2]
[363161821,1748604675785,-951.88,0.00023287,2]
[363161822,1748604675794,-520.84,0.00023287,2]
[363161823,1748604675802,-1161.85,0.00023287,2]
[363161824,1748604675812,-423.91,0.00023287,2]
[363161825,1748604675821,-1451.673205,0.00023287,7]
[363161826,1748604675830,-1822.04,0.00023287,2]
[363161827,1748604675840,-420.0,0.00023287,2]
[363161828,1748604675849,-1451.673205,0.00023287,7]
[363161829,1748604675859,-654.3,0.00023287,2]
[363161830,1748604675869,-761.08,0.00023287,2]
[363161831,1748604675884,-420.0,0.00023287,2]
[363161832,1748604675893,-1824.55,0.00023287,2]
[363161833,1748604675902,-505.34091603,0.00023321,2]
[363161834,1748604675911,-163.04,0.00023342,2]
[363161835,1748604675921,-163.04,0.00023342,2]
[363161836,1748604675930,-163.04,0.00023342,2]
[363161837,1748604675939,-163.04,0.00023342,2]
[363161838,1748604675948,-163.04,0.00023342,2]
[363161839,1748604675958,-163.04,0.00023342,2]
[363161840,1748604675967,-738.91,0.00023361,2]
[363161841,1748604675976,-223.0315306,0.00023363,2]
[363161842,1748604675985,-2591.86224837,0.00023383,9]
[363161843,1748604675994,-305.60291948,0.00023461,2]
[363161844,1748604676003,-200.0,0.00023472,2]
[363161845,1748604676012,-200.0,0.00023472,2]
[363161846,1748604676022,-2591.86224837,0.00023521,9]
[363161847,1748604676031,-162.380719,0.00023531,2]
[363161848,1748604676041,-300.0,0.0002356,2]
[363161849,1748604676051,-300.0,0.0002356,2]
[363161850,1748604676060,-300.0,0.0002356,2]
[363161851,1748604676070,-1573.44,0.0002356,2]
[363161852,1748604676079,-1391.71,0.0002356,2]
[363161853,1748604676088,-7429.13,0.0002356,2]
[363161854,1748604676098,-2921.34,0.0002356,2]
[363161855,1748604676107,-794.62,0.0002356,2]
[363161856,1748604676117,-3174.36,0.0002356,2]
[363161857,1748604676127,-6568.92,0.0002356,2]
[363161858,1748604676138,-1736.8,0.0002356,2]
[363161859,1748604676148,-1403.38,0.0002356,2]
[363161860,1748604676158,-670.15,0.0002356,2]
[363161861,1748604676168,-9101.03,0.0002356,2]
[363161862,1748604676178,-18152.04,0.0002356,2]
[363161863,1748604676188,-27441.36,0.0002356,2]
[363161864,1748604676198,-751.61,0.0002356,2]
[363161865,1748604676208,-8935.23,0.0002356,2]
[363161866,1748604676218,-2810.26,0.0002356,2]
[363161867,1748604676227,-1874.07,0.0002356,2]
[363161868,1748604676237,-1242.14,0.0002356,2]
[363161869,1748604676246,-1551.25,0.0002356,2]
[363161870,1748604676255,-672.13,0.0002356,2]
[363161871,1748604676265,-300.0,0.0002356,2]
[363161872,1748604676275,-628.57,0.00023561,2]
[363161873,1748604676284,-420.0,0.00023561,2]
[363161874,1748604676293,-307.01529597,0.00023561,2]
[363161875,1748604676302,-420.0,0.00023561,2]
[363161876,1748604676311,-420.0,0.00023561,2]
[363161877,1748604676320,-420.0,0.00023561,2]
[363161878,1748604676329,-433.48,0.00023561,2]
[363161879,1748604676340,-420.0,0.00023561,2]
[363161880,1748604676350,-640.5,0.00023561,2]
[363161881,1748604676359,-420.0,0.00023561,2]
[363161882,1748604676368,-420.0,0.00023561,2]
[363161883,1748604676378,-539.07,0.00023561,2]
[363161884,1748604676387,-465.13,0.00023561,2]
[363161885,1748604676397,-420.0,0.00023561,2]
[363161886,1748604676406,-465.38,0.00023561,2]
[363161887,1748604676416,-424.87687158,0.00023561,2]
[363161888,1748604676426,-420.0,0.00023561,2]
[363161889,1748604676435,-250.0,0.00023561,2]
[363161890,1748604676444,-420.0,0.00023561,2]
[363161891,1748604676454,-420.0,0.00023561,2]
[363161892,1748604676463,-420.0,0.00023561,2]
[363161893,1748604676473,-420.0,0.00023561,2]
[363161894,1748604676482,-468.76,0.00023561,2]
[363161895,1748604676492,-406.17597258,0.00023561,2]
[363161896,1748604676501,-420.0,0.00023561,2]
[363161897,1748604676511,-420.0,0.00023561,2]
[363161898,1748604676520,-420.0,0.00023561,2]